bitfinex-derivatives/quotes_BTCF0:USTF0_20241231
["timestamp","ask_amount","ask_price","bid_price","bid_amount"]
[1735614430470,0.11991726,92345.0,92335.0,0.05425]
[1735614430772,0.11991726,92345.0,92335.0,1.55425]
[1735614431172,0.12091726,92345.0,92335.0,1.55425]
[1735614432071,0.11991726,92345.0,92335.0,1.55425]
[1735614432472,0.007,92345.0,92343.0,0.054245]
[1735614434473,0.03027288,92347.0,92344.0,0.054245]
[1735614434673,0.032,92359.0,92344.0,0.054245]
[1735614434881,0.38681863,92356.0,92344.0,0.054245]
[1735614436874,0.38681863,92356.0,92344.0,0.055245]
[1735614437485,0.38781863,92356.0,92344.0,0.056245]
[1735614437976,0.38681863,92356.0,92344.0,0.054245]
[1735614438179,0.38681863,92356.0,92344.0,0.055245]
[1735614438683,0.3608,92348.0,92344.0,0.002]
[1735614438883,0.0616,92347.0,92344.0,0.002]
[1735614439284,0.3616,92347.0,92326.0,0.3608]
[1735614439488,0.3608,92334.0,92326.0,0.3608]
[1735614439675,0.0323,92333.0,92326.0,0.3608]
[1735614440377,0.0323,92333.0,92325.0,0.00162454]
[1735614440989,0.3608,92326.0,92325.0,0.00162454]
[1735614443087,0.3608,92326.0,92315.0,0.3608]
[1735614443286,0.11291726,92325.0,92315.0,0.3608]
[1735614445094,0.11391726,92325.0,92316.0,0.054261]
[1735614445981,0.11391726,92325.0,92315.0,0.3608]
[1735614446175,0.11391726,92325.0,92309.0,0.054265]
[1735614446379,0.11291726,92325.0,92309.0,0.054265]
[1735614448086,0.11291726,92325.0,92308.0,0.3608]
[1735614448278,0.11291726,92325.0,92310.0,0.054265]
[1735614449492,0.11291726,92325.0,92308.0,0.3608]
[1735614449685,0.11291726,92325.0,92311.0,0.085564]
[1735614450990,0.47371726,92325.0,92311.0,0.446364]
[1735614453089,0.47371726,92325.0,92311.0,0.3921]
[1735614453290,0.47371726,92325.0,92312.0,0.054264]
[1735614455184,0.11291726,92325.0,92312.0,0.054264]
[1735614455379,0.47371726,92325.0,92312.0,0.054264]
[1735614455779,0.47371726,92325.0,92311.0,0.3921]
[1735614456884,0.47371726,92325.0,92314.0,1.554262]
[1735614457085,0.3608,92325.0,92323.0,0.054257]
[1735614457482,0.3608,92325.0,92324.0,0.0619]
[1735614457791,0.0265661,92326.0,92324.0,0.0619]
[1735614457983,0.09991906,92335.0,92324.0,0.0619]
[1735614458182,0.09991906,92335.0,92334.0,0.054251]
[1735614458486,0.09991906,92335.0,92324.0,0.0619]
[1735614458487,0.3608,92347.0,92325.0,0.11291726]
[1735614458689,0.02717876,92344.0,92338.0,0.054248]
[1735614458891,0.02717876,92344.0,92343.0,0.054246]
[1735614460098,0.03617876,92344.0,92343.0,0.054246]
[1735614460691,0.02717876,92344.0,92343.0,0.054246]
[1735614464500,0.02555388,92344.0,92343.0,0.054246]
[1735614464700,0.3608,92347.0,92335.0,1.5331]
[1735614464904,0.3608,92347.0,92344.0,0.054244]
[1735614465696,0.3608,92347.0,92335.0,0.0331]
[1735614465697,0.38746293,92347.0,92335.0,0.0331]
[1735614469298,0.38746293,92347.0,92335.0,0.08735]
[1735614469694,0.38746293,92347.0,92336.0,0.054249]
[1735614470897,0.38746293,92347.0,92335.0,0.0331]
[1735614471099,0.38746293,92347.0,92338.0,0.054249]
[1735614472499,0.38746293,92347.0,92345.0,0.054244]
[1735614473695,0.38846293,92347.0,92345.0,0.054244]
[1735614475497,0.38846293,92347.0,92345.0,0.055244]
[1735614475800,0.38746293,92347.0,92345.0,0.055244]
[1735614476699,0.38746293,92347.0,92346.0,1.5]
[1735614477304,0.02666293,92347.0,92346.0,1.5]
[1735614477507,0.09989319,92356.0,92354.0,0.054239]
[1735614477697,0.12324436,92356.0,92354.0,0.054239]
[1735614478003,0.02335117,92356.0,92354.0,0.054239]
[1735614478203,0.3608,92357.0,92354.0,0.054239]
[1735614478599,0.38435429,92357.0,92354.0,0.054239]
[1735614480009,0.38835429,92357.0,92354.0,0.054239]
[1735614481398,0.38835429,92357.0,92347.0,0.054243]
[1735614481599,0.0324,92356.0,92347.0,0.054243]
[1735614482099,0.0344,92356.0,92347.0,0.054243]
[1735614482708,0.0324,92356.0,92347.0,0.054243]
[1735614483302,0.0334,92356.0,92347.0,0.054243]
[1735614484515,0.0334,92356.0,92348.0,0.054242]
[1735614485909,0.0334,92356.0,92346.0,0.0606]
[1735614486097,0.001,92356.0,92355.0,0.054239]
[1735614486798,0.001,92356.0,92355.0,1.554239]
[1735614487203,0.02355429,92357.0,92355.0,1.554239]
[1735614487413,0.004,92356.0,92355.0,1.554239]
[1735614487902,0.006,92356.0,92355.0,1.554239]
[1735614489812,0.002,92356.0,92355.0,1.554239]
[1735614490111,0.006,92356.0,92355.0,1.554239]
[1735614491703,0.02960567,92356.0,92355.0,1.554239]
[1735614491896,0.006,92356.0,92355.0,1.554239]
[1735614495702,0.02850258,92356.0,92355.0,1.554239]
[1735614496802,0.02850258,92356.0,92348.0,0.054242]
[1735614497201,0.032,92355.0,92348.0,0.054242]
[1735614497400,0.032,92355.0,92344.0,0.3608]
[1735614497602,0.11291726,92354.0,92344.0,0.3608]
[1735614498002,0.11291726,92354.0,92344.0,1.8608]
[1735614498406,0.3608,92349.0,92334.0,0.3608]
[1735614498709,0.3608,92349.0,92344.0,0.001]
[1735614500309,0.3608,92349.0,92334.0,0.3608]
[1735614500711,0.3648,92349.0,92334.0,0.3608]
[1735614501216,0.3638,92349.0,92334.0,0.3608]
[1735614501703,0.3648,92349.0,92334.0,0.3608]
[1735614501906,0.3648,92349.0,92335.0,0.05425]
[1735614502100,0.3648,92349.0,92334.0,0.3608]
[1735614502303,0.3648,92349.0,92339.0,0.11291726]
[1735614502506,0.3648,92349.0,92346.0,0.054244]
[1735614502709,0.3618,92349.0,92347.0,0.054243]
[1735614502907,0.001,92349.0,92347.0,0.054243]
[1735614503311,0.032,92355.0,92347.0,0.054243]
[1735614503512,0.001,92349.0,92347.0,0.054243]
[1735614503908,0.032,92355.0,92342.0,0.3608]
[1735614504104,0.02250258,92356.0,92354.0,0.054239]
[1735614504309,0.09988727,92369.0,92363.0,0.054234]
[1735614504509,0.02462133,92366.0,92363.0,0.054234]
[1735614504811,0.02462133,92366.0,92350.0,0.3608]
[1735614504812,0.00162455,92366.0,92364.0,0.054233]
[1735614505616,0.00162455,92366.0,92365.0,1.5]
[1735614506010,0.00162455,92366.0,92365.0,1.5314]
[1735614506518,0.00162455,92366.0,92365.0,1.5952]
[1735614506909,0.00862455,92366.0,92365.0,1.5952]
[1735614507110,0.01162455,92366.0,92365.0,1.5952]
[1735614508420,0.01,92366.0,92365.0,1.5952]
[1735614509709,0.0015,92368.0,92365.0,1.5952]
[1735614509910,0.00162405,92385.0,92365.0,1.5952]
[1735614510117,0.00162405,92385.0,92377.0,0.054225]
[1735614510412,0.00162405,92385.0,92380.0,0.054224]
[1735614511918,0.00162405,92385.0,92380.0,0.034224]
[1735614512614,0.014,92385.0,92380.0,0.035224]
[1735614513620,0.03688918,92385.0,92380.0,0.035224]
[1735614513810,0.014,92385.0,92380.0,0.035224]
[1735614515624,0.014,92385.0,92383.0,0.054222]
[1735614516721,0.009,92385.0,92383.0,0.054222]
[1735614516921,0.015,92385.0,92384.0,0.0752]
[1735614517918,0.015,92385.0,92384.0,1.5752]
[1735614518628,0.006,92385.0,92384.0,1.5752]
[1735614518817,0.009,92385.0,92384.0,1.5752]
[1735614519018,0.015,92385.0,92384.0,1.5752]
[1735614519222,0.006,92385.0,92384.0,1.5752]
[1735614519429,0.009,92385.0,92384.0,1.5752]
[1735614519624,0.003,92385.0,92384.0,1.5752]
[1735614519828,0.004,92385.0,92384.0,1.5752]
[1735614520827,0.004,92385.0,92384.0,0.0752]
[1735614521429,0.004,92385.0,92379.0,0.3608]
[1735614521733,0.004,92385.0,92380.0,0.054224]
[1735614522530,0.02558413,92385.0,92380.0,0.054224]
[1735614522830,0.02258413,92385.0,92380.0,0.054224]
[1735614523027,0.001,92385.0,92379.0,0.3608]
[1735614524030,0.001,92385.0,92374.0,0.054227]
[1735614524227,0.11291726,92384.0,92374.0,0.054227]
[1735614524433,0.001,92385.0,92376.0,0.054226]
[1735614524728,0.001,92385.0,92377.0,0.054225]
[1735614525229,0.3608,92386.0,92379.0,0.001]
[1735614525822,0.3608,92386.0,92380.0,0.054224]
[1735614526134,0.3608,92386.0,92383.0,0.054222]
[1735614527224,0.3608,92386.0,92384.0,1.554221]
[1735614528629,0.3618,92386.0,92384.0,1.554221]
[1735614529323,0.3638,92386.0,92384.0,1.554221]
[1735614529833,0.3618,92386.0,92384.0,1.554221]
[1735614530037,0.3638,92386.0,92384.0,1.554221]
[1735614530230,0.003,92386.0,92384.0,1.554221]
[1735614530437,0.003,92386.0,92384.0,0.054221]
[1735614531332,0.003,92386.0,92385.0,0.3608]
[1735614532224,0.002,92386.0,92385.0,0.3608]
[1735614532423,0.02350697,92390.0,92386.0,0.05422]
[1735614532634,0.001,92386.0,92385.0,0.3648]
[1735614533039,0.38371921,92395.0,92389.0,0.054219]
[1735614533240,0.38371921,92395.0,92385.0,0.3668]
[1735614533440,0.38371921,92395.0,92392.0,0.054217]
[1735614535533,0.38371921,92395.0,92392.0,0.055217]
[1735614536935,0.38371921,92395.0,92392.0,0.056217]
[1735614538244,0.38371921,92395.0,92392.0,0.055217]
[1735614538444,0.38371921,92395.0,92392.0,0.056217]
[1735614539348,0.38371921,92395.0,92392.0,0.055217]
[1735614539644,0.38371921,92395.0,92392.0,0.056217]
[1735614541033,0.02291921,92395.0,92393.0,0.054216]
[1735614541237,0.09984024,92398.0,92397.0,0.054214]
[1735614541855,0.51982,92399.0,92397.0,0.054214]
[1735614542146,0.51838,92399.0,92397.0,0.054214]
[1735614542544,0.5411804,92399.0,92397.0,0.054214]
[1735614542751,0.5411804,92399.0,92398.0,0.3608]
[1735614543050,0.0228004,92399.0,92398.0,0.3608]
[1735614543248,0.10146412,92404.0,92398.0,0.3608]
[1735614543459,0.10146412,92404.0,92403.0,0.05421]
[1735614543951,0.00162388,92404.0,92403.0,0.05421]
[1735614544451,0.3608,92405.0,92403.0,0.05421]
[1735614544846,0.09984024,92420.0,92416.0,0.054203]
[1735614545046,0.02279579,92420.0,92416.0,0.054203]
[1735614545247,0.09984024,92421.0,92416.0,0.054203]
[1735614546047,0.09984024,92421.0,92410.0,0.11291726]
[1735614546349,0.09984024,92425.0,92421.0,0.0542]
[1735614546743,0.38098147,92422.0,92421.0,0.0542]
[1735614547139,0.02018147,92422.0,92421.0,0.415]
[1735614547343,0.0309,92431.0,92430.0,0.054195]
[1735614547650,0.02090953,92431.0,92430.0,0.054195]
[1735614547854,0.09984024,92437.0,92422.0,0.0967]
[1735614548150,0.09984024,92437.0,92432.0,0.054193]
[1735614548449,0.3608,92438.0,92436.0,0.054191]
[1735614548851,0.38174872,92438.0,92436.0,0.054191]
[1735614549148,0.38174872,92438.0,92437.0,1.5]
[1735614550239,0.3698,92438.0,92437.0,1.5]
[1735614550443,0.009,92438.0,92437.0,1.8608]
[1735614550966,0.00162329,92439.0,92438.0,0.05419]
[1735614551651,0.0652,92469.0,92456.0,0.054179]
[1735614551652,0.0309,92468.0,92456.0,0.054179]
[1735614551850,0.00144,92460.0,92456.0,0.034179]
[1735614552052,0.0309,92468.0,92456.0,0.034179]
[1735614552255,0.38122484,92462.0,92456.0,0.034179]
[1735614552755,0.02042484,92462.0,92456.0,0.034179]
[1735614552953,0.0309,92468.0,92456.0,0.034179]
[1735614553555,0.0309,92468.0,92448.0,0.054184]
[1735614553556,0.3608,92462.0,92448.0,0.054184]
[1735614553759,0.11291726,92460.0,92448.0,0.054184]
[1735614553953,0.3698,92462.0,92448.0,0.054184]
[1735614554146,0.3608,92462.0,92448.0,0.054184]
[1735614554947,0.3668,92462.0,92449.0,0.054183]
[1735614555447,0.3668,92462.0,92457.0,0.054178]
[1735614555954,0.009,92460.0,92457.0,0.054178]
[1735614556547,0.3668,92462.0,92457.0,0.054178]
[1735614556548,0.3758,92462.0,92457.0,0.054178]
[1735614557158,0.009,92460.0,92457.0,0.055178]
[1735614557560,0.009,92460.0,92457.0,0.035178]
[1735614557856,0.3758,92462.0,92458.0,0.054178]
[1735614558052,0.017,92462.0,92460.0,0.054177]
[1735614558948,0.009,92462.0,92460.0,0.054177]
[1735614559149,0.3608,92479.0,92460.0,0.054177]
[1735614559355,0.3608,92479.0,92477.0,0.054167]
[1735614559654,0.0313,92484.0,92477.0,0.054167]
[1735614560049,0.05164621,92484.0,92471.0,0.3608]
[1735614560260,0.11291726,92481.0,92466.0,0.3608]
[1735614560555,0.41244621,92484.0,92466.0,0.3608]
[1735614560556,0.05417,92473.0,92466.0,0.3608]
[1735614561360,0.05417,92473.0,92466.0,0.3618]
[1735614561860,0.05417,92473.0,92466.0,0.3418]
[1735614562250,0.054171,92471.0,92466.0,0.3418]
[1735614562561,0.005,92473.0,92443.0,0.3608]
[1735614562562,0.054181,92453.0,92443.0,0.3608]
[1735614562754,0.11291726,92453.0,92443.0,0.3608]
[1735614562954,0.054185,92446.0,92443.0,0.3608]
[1735614564063,0.054181,92454.0,92443.0,0.3608]
[1735614564260,0.054182,92453.0,92443.0,0.3618]
[1735614564459,0.3608,92457.0,92443.0,0.3618]
[1735614564656,0.054182,92452.0,92443.0,0.3618]
[1735614564855,0.001,92446.0,92443.0,0.3618]
[1735614565563,0.001,92446.0,92443.0,0.3608]
[1735614566966,0.001,92446.0,92445.0,0.054186]
[1735614567159,0.0321,92450.0,92445.0,0.054186]
[1735614567963,0.05231407,92450.0,92445.0,1.554186]
[1735614568964,0.05231407,92450.0,92445.0,1.555186]
[1735614569269,0.05231407,92450.0,92445.0,1.558186]
[1735614569962,0.05231407,92450.0,92445.0,1.557186]
[1735614571661,0.05231407,92450.0,92445.0,1.558186]
[1735614572262,0.05231407,92450.0,92445.0,1.503]
[1735614572462,0.05231407,92450.0,92447.0,0.054184]
[1735614573856,0.05231407,92450.0,92447.0,0.056184]
[1735614575460,0.05231407,92450.0,92447.0,0.054184]
[1735614575660,0.054184,92449.0,92447.0,0.056184]
[1735614576161,0.054184,92449.0,92447.0,0.054184]
[1735614576359,0.054184,92449.0,92447.0,0.056184]
[1735614576556,0.3608,92448.0,92447.0,0.002]
[1735614576769,0.3929,92448.0,92432.0,0.3608]
[1735614576970,0.054193,92434.0,92432.0,0.3608]
[1735614577165,0.054194,92431.0,92425.0,0.054197]
[1735614577372,0.054196,92429.0,92419.0,0.0319]
[1735614577574,0.054196,92429.0,92420.0,0.0542]
[1735614577873,0.054196,92427.0,92420.0,0.0542]
[1735614578173,0.054196,92427.0,92417.0,0.3608]
[1735614579282,0.055196,92427.0,92426.0,0.00662263]
[1735614579772,0.055196,92427.0,92426.0,0.00862263]
[1735614580472,0.055196,92427.0,92426.0,0.007]
[1735614583276,0.054196,92427.0,92426.0,0.002]
[1735614583777,0.054202,92418.0,92409.0,0.3608]
[1735614584179,0.11291726,92420.0,92409.0,0.3608]
[1735614584368,0.054204,92414.0,92409.0,0.3608]
[1735614585165,0.054206,92410.0,92409.0,0.3608]
[1735614585571,0.054206,92410.0,92409.0,0.3648]
[1735614586379,0.054206,92410.0,92409.0,0.3658]
[1735614586675,0.054206,92410.0,92409.0,0.3648]
[1735614587678,0.054206,92410.0,92409.0,0.3638]
[1735614587879,0.054206,92410.0,92409.0,0.3648]
[1735614588671,0.054206,92410.0,92409.0,0.3618]
[1735614588885,0.054206,92410.0,92409.0,0.3648]
[1735614589377,0.054206,92410.0,92409.0,0.3618]
[1735614589774,0.054206,92410.0,92409.0,0.3608]
[1735614590378,0.054206,92410.0,92408.0,0.3608]
[1735614590581,0.055206,92410.0,92408.0,0.3608]
[1735614591680,0.055206,92410.0,92408.0,0.3618]
[1735614593283,0.054206,92410.0,92408.0,0.3618]
[1735614594074,0.056206,92410.0,92408.0,0.3618]
[1735614594470,0.056206,92410.0,92408.0,0.3608]
[1735614594877,0.056206,92410.0,92397.0,1.5]
[1735614595078,0.054213,92399.0,92397.0,1.5]
[1735614595379,0.054216,92393.0,92392.0,0.0626]
[1735614595682,0.054217,92392.0,92384.0,0.054221]
[1735614595994,0.054218,92390.0,92385.0,1.5]
[1735614596189,0.11291726,92402.0,92385.0,1.5]
[1735614596190,0.3608,92401.0,92385.0,1.5]
[1735614596486,0.054219,92389.0,92385.0,1.5]
[1735614596684,0.054219,92388.0,92385.0,1.5]
[1735614597373,0.054219,92388.0,92385.0,1.502]
[1735614597888,0.054219,92388.0,92387.0,0.05422]
[1735614599487,0.054219,92388.0,92387.0,0.05822]
[1735614600189,0.054215,92395.0,92389.0,0.054218]
[1735614600381,0.02101267,92401.0,92399.0,0.054212]
[1735614600691,0.054209,92406.0,92400.0,1.5644]
[1735614600881,0.054209,92406.0,92405.0,0.3608]
[1735614601191,0.00162359,92407.0,92405.0,0.3608]
[1735614601385,0.00162359,92407.0,92406.0,0.054209]
[1735614601991,0.02276623,92407.0,92406.0,0.054209]
[1735614602192,0.00162359,92407.0,92406.0,0.054209]
[1735614602494,0.00562359,92407.0,92406.0,0.054209]
[1735614603088,0.00162359,92407.0,92406.0,0.054209]
[1735614603284,0.00662359,92407.0,92406.0,0.054209]
[1735614603691,0.00762359,92407.0,92406.0,0.054209]
[1735614604398,0.00562359,92407.0,92406.0,0.054209]
[1735614604586,0.00562359,92407.0,92406.0,0.056209]
[1735614605893,0.00162359,92407.0,92406.0,0.056209]
[1735614606095,0.00262359,92407.0,92406.0,0.061209]
[1735614606679,0.00162359,92407.0,92406.0,0.060209]
[1735614607581,0.00262359,92407.0,92406.0,0.061209]
[1735614607981,0.054197,92426.0,92424.0,0.054198]
[1735614609594,0.058197,92426.0,92424.0,0.054198]
[1735614610384,0.07876873,92426.0,92424.0,0.054198]
[1735614610584,0.07676873,92426.0,92424.0,0.054198]
[1735614610891,0.07976873,92426.0,92424.0,0.054198]
[1735614613092,0.02557173,92426.0,92423.0,0.3608]
[1735614613283,0.02557173,92426.0,92402.0,0.0206934]
[1735614613284,0.054198,92425.0,92414.0,0.3608]
[1735614613486,0.02557173,92426.0,92414.0,0.3608]
[1735614613689,0.054203,92416.0,92414.0,0.3608]
[1735614614193,0.0332,92415.0,92414.0,0.3608]
[1735614614500,0.0332,92415.0,92414.0,0.3628]
[1735614614997,0.0332,92415.0,92396.0,0.3608]
[1735614615195,0.054213,92398.0,92396.0,0.3608]
[1735614615496,0.11291726,92406.0,92395.0,0.00162332]
[1735614615497,0.054215,92396.0,92395.0,0.00162332]
[1735614616898,0.054218,92390.0,92389.0,0.3608]
[1735614619689,0.055218,92390.0,92389.0,0.3608]
[1735614620090,0.056218,92390.0,92389.0,0.3608]
[1735614621291,0.07448266,92390.0,92389.0,0.3608]
[1735614621491,0.07448266,92390.0,92375.0,0.415027]
[1735614621492,0.02026466,92390.0,92375.0,0.054227]
[1735614621696,0.054222,92384.0,92377.0,0.3608]
[1735614622086,0.13318192,92390.0,92377.0,0.3608]
[1735614622902,0.054223,92381.0,92377.0,0.3638]
[1735614623294,0.054223,92381.0,92377.0,0.418026]
[1735614623494,0.054223,92381.0,92377.0,0.420026]
[1735614624294,0.054223,92381.0,92377.0,0.419026]
[1735614625903,0.054223,92381.0,92377.0,0.420026]
[1735614626306,0.054223,92381.0,92377.0,0.416026]
[1735614626498,0.055223,92381.0,92377.0,0.421026]
[1735614626696,0.055223,92381.0,92377.0,0.422026]
[1735614627303,0.055223,92381.0,92377.0,0.417026]
[1735614627606,0.054223,92381.0,92378.0,1.5]
[1735614627804,0.01826466,92390.0,92388.0,0.054219]
[1735614628007,0.3608,92395.0,92385.0,0.3608]
[1735614628302,0.3608,92395.0,92392.0,0.054217]
[1735614628603,0.37980793,92395.0,92393.0,0.054216]
[1735614628803,0.03,92408.0,92393.0,0.3608]
[1735614628999,0.03,92408.0,92403.0,0.05421]
[1735614629198,0.054208,92407.0,92403.0,0.05421]
[1735614629402,0.3608,92406.0,92403.0,0.05421]
[1735614629601,0.07329625,92407.0,92403.0,0.05421]
[1735614629807,0.07329625,92407.0,92406.0,0.054209]
[1735614630801,0.07429625,92407.0,92406.0,0.054209]
[1735614631108,0.054209,92405.0,92401.0,0.3608]
[1735614631307,0.054209,92405.0,92403.0,0.05421]
[1735614632309,0.02108825,92407.0,92404.0,0.054209]
[1735614632704,0.02008825,92407.0,92401.0,0.3608]
[1735614632907,0.02008825,92407.0,92406.0,0.054209]
[1735614633109,0.01908825,92407.0,92406.0,0.054209]
[1735614633305,0.00162381,92409.0,92401.0,0.3608]
[1735614633608,0.001,92407.0,92401.0,0.3608]
[1735614634012,0.00162381,92409.0,92407.0,0.054208]
[1735614636512,0.00362381,92409.0,92407.0,0.054208]
[1735614637013,0.00562381,92409.0,92407.0,0.054208]
[1735614637414,0.00562381,92409.0,92408.0,1.5]
[1735614638608,0.00362381,92409.0,92408.0,1.5]
[1735614638808,0.00562381,92409.0,92408.0,1.5]
[1735614643029,0.00562381,92409.0,92408.0,1.4992]
[1735614643328,0.054199,92422.0,92414.0,0.054204]
[1735614643524,0.0732667,92422.0,92415.0,0.054203]
[1735614643930,0.0732667,92422.0,92416.0,0.0333]
[1735614644530,0.0542,92421.0,92416.0,0.0333]
[1735614644725,0.054201,92420.0,92416.0,0.0333]
[1735614646434,0.005,92422.0,92415.0,0.055203]
[1735614646930,0.054196,92427.0,92415.0,0.054203]
[1735614647126,0.37942331,92428.0,92416.0,0.001]
[1735614647518,0.37942331,92428.0,92415.0,0.054203]
[1735614647721,0.37942331,92428.0,92415.0,0.056203]
[1735614647923,0.054202,92418.0,92415.0,0.056203]
[1735614648328,0.054202,92418.0,92416.0,0.001]
[1735614650036,0.054202,92418.0,92415.0,0.055203]
[1735614650536,0.054202,92418.0,92416.0,0.001]
[1735614651224,0.37942331,92428.0,92409.0,0.3608]
[1735614651537,0.054203,92416.0,92409.0,0.415007]
[1735614653033,0.054203,92416.0,92409.0,0.416007]
[1735614653736,0.054203,92416.0,92409.0,0.419007]
[1735614654133,0.054203,92416.0,92411.0,0.054206]
[1735614655231,0.054204,92415.0,92411.0,0.054206]
[1735614655433,0.054205,92413.0,92411.0,0.054206]
[1735614655638,0.054205,92413.0,92411.0,0.055206]
[1735614656235,0.054205,92413.0,92411.0,0.054206]
[1735614656523,0.054205,92413.0,92411.0,0.055206]
[1735614657433,0.054205,92413.0,92411.0,0.057206]
[1735614658139,0.054205,92413.0,92411.0,0.056206]
[1735614659744,0.37980663,92428.0,92411.0,0.056206]
[1735614659932,0.054201,92419.0,92411.0,0.056206]
[1735614660244,0.37980663,92428.0,92411.0,0.056206]
[1735614660245,0.054197,92426.0,92419.0,0.054201]
[1735614660425,0.054199,92423.0,92419.0,0.054201]
[1735614660840,0.054199,92422.0,92419.0,0.054201]
[1735614661426,0.054201,92420.0,92418.0,0.3608]
[1735614663033,0.055201,92420.0,92418.0,0.3608]
[1735614663241,0.054206,92411.0,92410.0,0.3608]
[1735614663445,0.054206,92411.0,92410.0,0.35953001]
[1735614664841,0.054206,92411.0,92410.0,0.002]
[1735614665042,0.054206,92411.0,92392.0,0.3608]
[1735614665232,0.054212,92400.0,92392.0,0.3608]
[1735614665638,0.054212,92400.0,92393.0,1.5]
[1735614666231,0.054212,92400.0,92394.0,0.054215]
[1735614667144,0.001,92400.0,92399.0,0.00662333]
[1735614667337,0.001,92400.0,92399.0,0.03832333]
[1735614667645,0.001,92400.0,92399.0,0.03932333]
[1735614667835,0.01864863,92410.0,92399.0,1.53932333]
[1735614668037,0.054205,92413.0,92403.0,0.3608]
[1735614668738,0.054205,92413.0,92407.0,0.054208]
[1735614669241,0.07315053,92413.0,92407.0,0.054208]
[1735614670145,0.07315053,92413.0,92411.0,0.3608]
[1735614670737,0.07415053,92413.0,92411.0,0.3608]
[1735614670937,0.07515053,92413.0,92411.0,0.3608]
[1735614671332,0.07715053,92413.0,92411.0,0.3608]
[1735614671739,0.07815053,92413.0,92411.0,0.3608]
[1735614672846,0.07715053,92413.0,92411.0,0.3608]
[1735614674146,0.02294553,92413.0,92411.0,0.3608]
[1735614674342,0.02294553,92413.0,92411.0,0.415005]
[1735614674550,0.004,92413.0,92411.0,0.415005]
[1735614674738,0.004,92413.0,92412.0,0.0641]
[1735614675138,0.004,92413.0,92412.0,1.5641]
[1735614676343,0.004,92413.0,92412.0,1.5326]
[1735614676540,0.005,92413.0,92412.0,1.5326]
[1735614677351,0.003,92413.0,92412.0,1.5326]
[1735614677542,0.005,92413.0,92412.0,1.5326]
[1735614679648,0.005,92413.0,92412.0,1.5325]
[1735614680155,0.005,92413.0,92412.0,0.0325]
[1735614680156,0.002,92413.0,92412.0,0.0325]
[1735614680340,0.002,92413.0,92412.0,0.0345]
[1735614680544,0.002,92413.0,92412.0,1.5345]
[1735614680739,0.002,92413.0,92412.0,1.5325]
[1735614680954,0.002,92413.0,92412.0,1.5345]
[1735614681150,0.054203,92416.0,92415.0,0.054203]
[1735614681354,0.01906482,92419.0,92412.0,1.5345]
[1735614681548,0.0008,92420.0,92417.0,0.054202]
[1735614681755,0.0008,92420.0,92412.0,1.5345]
[1735614681756,0.0008,92420.0,92419.0,0.415001]
[1735614682347,0.02407861,92420.0,92419.0,0.415001]
[1735614682646,0.0018,92420.0,92419.0,0.415001]
[1735614683650,0.02662125,92420.0,92419.0,0.415001]
[1735614684250,0.02462125,92420.0,92419.0,0.415001]
[1735614684556,0.02462125,92420.0,92419.0,0.419001]
[1735614684957,0.02362125,92420.0,92419.0,0.419001]
[1735614685257,0.02362125,92420.0,92419.0,0.421001]
[1735614687147,0.0008,92420.0,92419.0,0.420001]
[1735614687860,0.09982388,92443.0,92440.0,0.054189]
[1735614688060,0.09982388,92443.0,92435.0,0.3608]
[1735614688260,0.15401088,92443.0,92435.0,0.3608]
[1735614688463,0.15401088,92443.0,92436.0,1.554191]
[1735614689066,0.054187,92443.0,92436.0,1.554191]
[1735614690156,0.02523538,92441.0,92436.0,1.554191]
[1735614690665,0.03023538,92441.0,92436.0,1.554191]
[1735614690860,0.03323538,92441.0,92436.0,1.554191]
[1735614692167,0.03323538,92441.0,92436.0,0.054191]
[1735614693259,0.03323538,92441.0,92437.0,0.05419]
[1735614693562,0.03223538,92441.0,92437.0,0.05419]
[1735614693756,0.03123538,92441.0,92437.0,0.05419]
[1735614694363,0.08542338,92441.0,92437.0,0.05419]
[1735614694565,0.08342338,92441.0,92437.0,0.05419]
[1735614694770,0.08642338,92441.0,92437.0,0.05419]
[1735614695466,0.08342338,92441.0,92437.0,0.05419]
[1735614695668,0.08342338,92441.0,92437.0,0.05619]
[1735614696164,0.054189,92440.0,92437.0,0.05619]
[1735614696763,0.054189,92440.0,92437.0,0.06019]
[1735614697167,0.054189,92440.0,92437.0,0.05919]
[1735614698364,0.054189,92440.0,92437.0,0.05519]
[1735614698666,0.054189,92440.0,92437.0,0.05819]
[1735614698966,0.054189,92440.0,92437.0,0.05519]
[1735614699168,0.054189,92440.0,92437.0,0.05819]
[1735614699566,0.054189,92440.0,92437.0,0.05519]
[1735614699765,0.054189,92440.0,92437.0,0.05719]
[1735614700067,0.054189,92440.0,92437.0,0.05619]
[1735614700265,0.054189,92440.0,92437.0,0.05719]
[1735614700860,0.054189,92440.0,92437.0,0.05619]
[1735614702259,0.054189,92440.0,92437.0,0.05419]
[1735614702574,0.054189,92440.0,92437.0,0.05619]
[1735614702866,0.054189,92440.0,92437.0,0.05419]
[1735614703064,0.054189,92440.0,92437.0,0.05619]
[1735614706972,0.054189,92439.0,92437.0,0.002]
[1735614708671,0.054189,92439.0,92435.0,0.3608]
[1735614708867,0.054189,92439.0,92437.0,0.002]
[1735614709264,0.054189,92439.0,92435.0,0.3608]
[1735614709464,0.054189,92439.0,92437.0,0.002]
[1735614710969,0.054189,92439.0,92437.0,0.001]
[1735614712283,0.02523538,92441.0,92440.0,0.054189]
[1735614712475,0.00162334,92441.0,92440.0,0.054189]
[1735614712876,0.00162334,92441.0,92440.0,1.554189]
[1735614713770,0.054178,92458.0,92440.0,1.8608]
[1735614713975,0.054175,92463.0,92455.0,0.05418]